fUSD/lending_fUSD_20260326
["ID","MTS","AMOUNT","RATE_DAILY","PERIOD"]
[418924903,1774567831708,-300.0,0.00013362,2]
[418924904,1774567831718,-150.0,0.00013362,2]
[418924905,1774567831730,-201.0,0.00013362,2]
[418924906,1774567831739,-936.08503352,0.00013363,2]
[418924907,1774567831751,-302.18492085,0.00013363,2]
[418924908,1774567831788,-385.00293256,0.00013363,2]
[418924909,1774567831812,-5364.1277675,0.00013363,2]
[418924911,1774567831910,-636.77253227,0.00013363,2]
[418924926,1774567837742,-307.92957538,0.00013363,2]
[418924927,1774567837755,-3390.88534464,0.00013363,2]
[418924928,1774567837768,-754.07848955,0.00013363,2]
[418924929,1774567837975,-6620.87923929,0.00013363,2]
[418924930,1774567837987,-15837.27592586,0.00013363,2]
[418924931,1774567838002,-1440.7998,0.00013363,2]
[418924933,1774567840054,-605.6185502,0.00013363,2]
[418924934,1774567840794,-333.33258167,0.00013363,2]
[418924942,1774567843134,-2357.33820671,0.00013363,2]
[418924943,1774567843144,-1000.0,0.00013363,2]
[418924944,1774567843154,-279100.9455,0.00013363,2]
[418924945,1774567843163,-497.0641286,0.00013363,2]
[418924946,1774567843173,-500.0,0.00013373,2]
[418924947,1774567843182,-500.0,0.00013373,2]
[418924948,1774567843192,-500.0,0.00013373,2]
[418924949,1774567843202,-500.0,0.00013373,2]
[418924950,1774567843212,-500.0,0.00013373,2]
[418924951,1774567843221,-1547.2147466,0.00013446,2]
[418924952,1774567843231,-500.0,0.00013455,2]
[418924953,1774567843241,-500.0,0.00013455,2]
[418924954,1774567843251,-500.0,0.00013455,2]
[418924955,1774567843260,-500.0,0.00013455,2]
[418924956,1774567843270,-500.0,0.00013455,2]
[418924957,1774567843280,-547.97446155,0.00013455,2]
[418924958,1774567843289,-151.0,0.00013455,2]
[418924959,1774567843298,-151.0,0.00013455,2]
[418924960,1774567843308,-151.0,0.00013455,2]
[418924961,1774567843317,-151.0,0.00013455,2]
[418924962,1774567843325,-151.0,0.00013455,2]
[418924963,1774567843335,-151.0,0.00013455,2]
[418924964,1774567843344,-151.0,0.00013455,2]
[418924965,1774567843353,-151.0,0.00013455,2]
[418924966,1774567843363,-151.0,0.00013455,2]
[418924967,1774567843372,-151.0,0.00013455,2]
[418924968,1774567843381,-151.0,0.00013455,2]
[418924969,1774567843391,-151.0,0.0001346,2]
[418924970,1774567843400,-155.0,0.00013463,3]
[418924971,1774567843410,-729.97610713,0.00013556,2]
[418924972,1774567843419,-500.0,0.00013563,2]
[418924973,1774567843428,-277.10248743,0.0001364,2]
[418924974,1774567843438,-166.66,0.00013641,2]
[418924975,1774567843447,-500.0,0.00013698,2]
[418924976,1774567843457,-500.0,0.00013698,2]
[418924977,1774567843466,-500.0,0.00013698,2]
[418924978,1774567843476,-200.0,0.00013699,2]
[418924979,1774567843485,-1476.34,0.00013699,2]
[418924980,1774567843495,-175.29,0.00013699,2]
[418924981,1774567843504,-1600.0,0.00013749,2]
[418924982,1774567843514,-417.7,0.00013812,2]
[418924983,1774567843523,-200.0,0.00013817,2]
[418924984,1774567843533,-500.0,0.00013829,2]
[418924985,1774567843542,-729.97610713,0.00013849,2]
[418924986,1774567843552,-166.66,0.00013922,2]
[418924987,1774567843561,-156.1,0.00013961,2]
[418924988,1774567843571,-15497.9297827,0.0001399,2]
[418924989,1774567843580,-1500.0,0.00013993,2]
[418924990,1774567843590,-504.0,0.00014,2]
[418924991,1774567843599,-277.10248743,0.00014016,2]
[418924992,1774567843608,-224.02,0.00014051,3]
[418924993,1774567843618,-979.16666667,0.00014064,2]
[418924994,1774567843628,-700.0,0.00014082,2]
[418924995,1774567843637,-150.0,0.00014126,2]
[418924996,1774567843647,-729.97610713,0.00014142,2]
[418924997,1774567843656,-3240.0,0.00014163,2]
[418924998,1774567843666,-1273.42,0.00014168,2]
[418924999,1774567843675,-166.66,0.00014204,2]
[418925000,1774567843684,-151.0,0.00014282,2]
[418925001,1774567843694,-2500.0,0.000143,2]
[418925003,1774567843703,-600.0,0.000143,2]
[418925005,1774567843713,-600.0,0.000143,2]
[418925007,1774567843722,-600.0,0.000143,2]
[418925009,1774567843731,-600.0,0.000143,2]
[418925011,1774567843740,-600.0,0.000143,2]
[418925012,1774567843750,-2500.0,0.000143,2]
[418925013,1774567843759,-2500.0,0.000143,2]
[418925014,1774567843768,-2500.0,0.000143,2]
[418925015,1774567843778,-2500.0,0.000143,2]
[418925016,1774567843787,-300.0,0.000143,2]
[418925017,1774567843797,-300.0,0.000143,2]
[418925018,1774567843806,-300.0,0.000143,2]
[418925019,1774567843816,-300.0,0.000143,2]
[418925020,1774567843825,-300.0,0.000143,2]
[418925021,1774567843835,-500.0,0.000143,2]
[418925022,1774567843844,-500.0,0.000143,2]
[418925023,1774567843853,-500.0,0.000143,2]
[418925024,1774567843863,-500.0,0.000143,2]
[418925025,1774567843872,-500.0,0.000143,2]
[418925026,1774567843881,-250.0,0.000143,2]
[418925027,1774567843890,-2661.3,0.00014304,2]
[418925028,1774567843900,-1100.0,0.00014356,2]
[418925029,1774567843909,-277.10248743,0.00014393,2]
[418925030,1774567843918,-150.0,0.000144,2]
[418925031,1774567843928,-729.97610713,0.00014435,2]
[418925032,1774567843937,-255.0,0.00014471,2]
[418925033,1774567843946,-166.66,0.00014485,2]
[418925034,1774567843955,-417.7,0.00014503,2]
[418925035,1774567843965,-4146.62,0.00014504,2]
[418925036,1774567843975,-155.0,0.0001453,3]
[418925037,1774567843984,-420.0,0.00014648,2]
[418925038,1774567843993,-1680.0,0.00014698,2]
[418925039,1774567844003,-1262.0,0.00014741,2]
[418925040,1774567844013,-1216.0,0.00014741,2]
[418925041,1774567844022,-924.0,0.00014741,2]
[418925042,1774567844031,-1045.0,0.00014741,2]
[418925043,1774567844040,-621.0,0.00014741,2]
[418925044,1774567844050,-415.0,0.00014741,2]
[418925045,1774567844059,-166.66,0.00014766,2]
[418925046,1774567844069,-277.10248743,0.0001477,2]
[418925047,1774567844078,-300.0,0.00015,2]
[418925048,1774567844088,-504.0,0.00015015,2]
[418925049,1774567844098,-500.0,0.00015047,2]
[418925050,1774567844107,-500.0,0.00015047,2]
[418925051,1774567844116,-500.0,0.00015047,2]
[418925052,1774567844126,-500.0,0.00015047,2]
[418925053,1774567844136,-500.0,0.00015047,2]
[418925054,1774567844145,-500.0,0.00015047,2]
[418925055,1774567844155,-500.0,0.00015047,2]
[418925056,1774567844164,-500.0,0.00015047,2]
[418925057,1774567844173,-500.0,0.00015047,2]
[418925058,1774567844183,-500.0,0.00015047,2]
[418925059,1774567844192,-500.0,0.00015047,2]
[418925060,1774567844201,-500.0,0.00015047,2]
[418925061,1774567844211,-151.0,0.00015096,2]
[418925062,1774567844221,-277.10248743,0.00015147,2]
[418925063,1774567844230,-529.294,0.00015148,2]
[418925064,1774567844240,-417.7,0.00015193,2]
[418925065,1774567844249,-1205.0,0.00015451,2]
[418925066,1774567844259,-510.0,0.00015451,2]
[418925067,1774567844268,-700.0,0.00015452,2]
[418925068,1774567844278,-500.0,0.00015467,2]
[418925069,1774567844287,-379.01996919,0.00015467,2]
[418925070,1774567844296,-500.0,0.00015467,2]
[418925071,1774567844306,-176.19171656,0.00015467,2]
[418925072,1774567844315,-464.02455378,0.00015467,2]
[418925073,1774567844324,-296.30013021,0.00015467,2]
[418925074,1774567844334,-1600.0,0.00015468,2]
[418925075,1774567844344,-500.0,0.00015471,2]
[418925076,1774567844353,-938.39,0.00015471,2]
[418925077,1774567844363,-2430.83,0.00015471,2]
[418925078,1774567844373,-21642.89,0.00015471,2]
[418925079,1774567844382,-730.54,0.00015471,2]
[418925080,1774567844392,-4000.0,0.00015507,2]
[418925081,1774567844401,-277.10248743,0.00015523,2]
[418925082,1774567844411,-252.911663,0.00015582,7]
[418925083,1774567844421,-160.0,0.00015582,7]
[418925084,1774567844431,-160.0,0.00015582,7]
[418925085,1774567844440,-155.0,0.00015597,3]
[418925086,1774567844450,-197.1472,0.000156,2]
[418925087,1774567844460,-433.0,0.00015673,2]
[418925088,1774567844469,-160.0,0.00015679,7]
[418925089,1774567844478,-933.93878572,0.0001568,2]
[418925090,1774567844487,-160.0,0.0001568,7]
[418925091,1774567844496,-362.423624,0.0001568,7]
[418925092,1774567844504,-347.221638,0.0001568,7]
[418925093,1774567844513,-160.0,0.0001568,7]
[418925094,1774567844524,-1100.0,0.00015726,2]
[418925095,1774567844535,-350.0,0.0001576,2]
[418925096,1774567844545,-3458.0555543,0.00015763,2]
[418925097,1774567844555,-162.20742621,0.00015782,2]
[418925098,1774567844564,-1476.34,0.00015862,2]
[418925099,1774567844574,-500.0,0.00015872,2]
[418925100,1774567844583,-417.7,0.00015884,2]
[418925101,1774567844592,-2000.0,0.0001589,2]
[418925102,1774567844601,-4000.0,0.00015895,2]
[418925103,1774567844611,-151.0,0.00015897,2]
[418925104,1774567844620,-1900.54917129,0.000159,2]
[418925105,1774567844630,-5000.0,0.000159,2]
[418925106,1774567844640,-830.42713701,0.000159,2]
[418925107,1774567844651,-530.64862725,0.000159,2]
[418925108,1774567844660,-4007.95490143,0.000159,2]
[418925109,1774567844670,-277.10248743,0.000159,2]
[418925110,1774567844680,-1170.15336539,0.00015927,2]
[418925111,1774567844689,-389.39669243,0.00015973,2]
[418925112,1774567844698,-500.0,0.00015973,2]
[418925113,1774567844708,-500.0,0.00015973,2]
[418925114,1774567844718,-500.0,0.00015973,2]
[418925115,1774567844727,-500.0,0.00015973,2]
[418925116,1774567844736,-500.0,0.00015973,2]
[418925117,1774567844746,-4998.0,0.00015981,2]
[418925118,1774567844756,-288.22024869,0.0001599,2]
[418925119,1774567844765,-151.0,0.00015997,2]
[418925120,1774567844774,-1067.54895648,0.00015999,5]
[418925121,1774567844783,-6004.28623306,0.00015999,2]
[418925122,1774567844793,-500.0,0.00015999,2]
[418925123,1774567844804,-500.0,0.00015999,2]
[418925124,1774567844813,-500.0,0.00015999,2]
[418925125,1774567844823,-500.0,0.00015999,2]
[418925126,1774567844832,-500.0,0.00015999,2]
[418925127,1774567844841,-480.59503174,0.00015999,2]
[418925128,1774567844850,-500.0,0.00015999,2]
[418925129,1774567844859,-500.0,0.00015999,2]
[418925130,1774567844868,-500.0,0.00015999,2]
[418925131,1774567844877,-500.0,0.00015999,2]
[418925132,1774567844886,-500.0,0.00015999,2]
[418925133,1774567844895,-500.0,0.00015999,2]
[418925134,1774567844904,-500.0,0.00015999,2]
[418925135,1774567844913,-500.0,0.00015999,2]
[418925136,1774567844922,-1124.0,0.00016,5]
[418925137,1774567844932,-1116.0,0.00016,5]
[418925138,1774567844941,-1116.0,0.00016,5]
[418925139,1774567844950,-4631421.84660863,0.00016,2]
[418925140,1774567844959,-281523.93142687,0.00016,2]
[418925141,1774567844968,-196106.22548726,0.00016,2]
[418925142,1774567844977,-636159.70693744,0.00016,2]
[418925143,1774567844986,-500.0,0.00016,2]
[418925144,1774567844996,-500.0,0.00016,2]
[418925145,1774567845006,-500.0,0.00016,2]
[418925146,1774567845015,-500.0,0.00016,2]
[418925147,1774567845024,-500.0,0.00016,2]
[418925148,1774567845034,-500.0,0.00016,2]
[418925149,1774567845043,-500.0,0.00016,2]
[418925150,1774567845052,-347.26214489,0.00016,2]
[418925151,1774567845062,-1000.0,0.00016,2]
[418925152,1774567845071,-743632.95495302,0.00016,2]
[418925153,1774567845080,-2209707.31776151,0.00016,2]
[418925154,1774567845089,-200.0,0.00016,2]
[418925155,1774567845098,-1656082.1579948,0.00016,2]
[418925156,1774567845108,-2209973.30167927,0.00016,2]
[418925157,1774567845118,-49040.50592679,0.00016,2]
[418925158,1774567845127,-1000.0,0.00016,2]
[418925159,1774567845137,-492048.67679947,0.00016,2]
[418925160,1774567845146,-200.0,0.00016,2]
[418925161,1774567845156,-195.0,0.00016,2]
[418925162,1774567845165,-517849.67547908,0.00016,2]
[418925163,1774567845174,-980924.5521837,0.00016,2]
[418925164,1774567845183,-308460.29990253,0.00016,2]
[418925165,1774567845192,-270540.8445844,0.00016,2]
[418925166,1774567845201,-336558.73058527,0.00016,2]
[418925167,1774567845210,-445.04,0.00016,2]
[418925168,1774567845219,-15871.25,0.00016,2]
[418925169,1774567845228,-1364.69,0.00016,2]
[418925170,1774567845237,-2097.88,0.00016,2]
[418925171,1774567845246,-1104711.94317714,0.00016,2]
[418925172,1774567845255,-1983211.70658631,0.00016,2]
[418925173,1774567845265,-4244.83496147,0.00016,2]
[418925174,1774567845274,-490348.9947507,0.00016,2]
[418925175,1774567845283,-356606.60721465,0.00016,2]
[418925176,1774567845292,-38799.69766043,0.00016,3]
[418925177,1774567845302,-51983.90055595,0.00016,3]
[418925178,1774567845311,-3250.98387531,0.00016,3]
[418925179,1774567845320,-42318.6134881,0.00016,2]
[418925180,1774567845330,-2000.92,0.00016,2]
[418925181,1774567845339,-1808.4,0.00016,2]
[418925182,1774567845348,-1569.07601386,0.00016,2]
[418925183,1774567845357,-2792790.24177212,0.00016,2]
[418925184,1774567845366,-392628.35135479,0.00016,2]
[418925185,1774567845375,-250.0,0.00016,2]
[418925186,1774567845384,-25755.16503853,0.00016,2]
[418925187,1774567845394,-3375.1132903,0.00016,3]
[418925188,1774567845403,-200.858686,0.00016,2]
[418925189,1774567845413,-151.0,0.00016021,2]
[418925190,1774567845422,-8745.0,0.00016024,2]
[418925191,1774567845431,-504.0,0.00016031,3]
[418925192,1774567845440,-587.0,0.00016058,2]
[418925193,1774567845450,-7458.0,0.00016111,2]
[418925194,1774567845459,-1155.55,0.00016116,2]
[418925195,1774567845468,-9999.99,0.00016116,2]
[418925196,1774567845477,-150.0,0.00016136,2]
[418925197,1774567845486,-10256.0,0.00016145,2]
[418925198,1774567845495,-771.5964896,0.00016159,2]
[418925199,1774567845504,-2351.0,0.00016168,2]
[418925200,1774567845514,-1449.15,0.00016194,2]
[418925201,1774567845523,-1800.0,0.000162,2]
[418925202,1774567845532,-9874.0,0.00016236,2]
[418925203,1774567845541,-168.14,0.00016274,2]
[418925204,1774567845550,-4000.0,0.00016282,2]
[418925205,1774567845559,-426.0,0.000163,2]
[418925206,1774567845569,-410.0,0.000163,2]
[418925208,1774567845578,-4587.0,0.00016369,2]
[418925209,1774567845587,-500.0,0.00016394,2]
[418925210,1774567845597,-1299.91,0.00016438,2]
[418925211,1774567845606,-1058.32929778,0.00016438,2]
[418925212,1774567845615,-1058.32929778,0.00016438,2]
[418925213,1774567845625,-158.74939467,0.00016438,2]
[418925214,1774567845635,-194.02703793,0.00016438,2]
[418925215,1774567845644,-1246.8,0.00016438,2]
[418925216,1774567845653,-150.0,0.00016438,2]
[418925217,1774567845663,-150.0,0.00016438,2]
[418925218,1774567845672,-150.0,0.00016438,2]
[418925219,1774567845681,-150.0,0.00016438,2]
[418925220,1774567845690,-150.0,0.00016438,2]
[418925221,1774567845699,-150.0,0.00016438,2]
[418925222,1774567845709,-150.0,0.00016438,2]
[418925223,1774567845718,-150.0,0.00016438,2]
[418925224,1774567845727,-150.0,0.00016438,2]
[418925225,1774567845736,-150.0,0.00016438,2]
[418925226,1774567845745,-150.0,0.00016438,2]
[418925227,1774567845754,-150.0,0.00016438,2]
[418925228,1774567845763,-150.0,0.00016438,2]
[418925229,1774567845772,-150.0,0.00016438,2]
[418925230,1774567845782,-150.0,0.00016438,2]
[418925231,1774567845791,-150.0,0.00016438,2]
[418925232,1774567845800,-150.0,0.00016438,2]
[418925233,1774567845810,-1037.0,0.00016438,2]
[418925234,1774567845819,-1037.0,0.00016438,2]
[418925235,1774567845828,-1037.0,0.00016438,2]
[418925236,1774567845837,-1037.0,0.00016438,2]
[418925237,1774567845846,-150.0,0.00016438,2]
[418925238,1774567845855,-1037.0,0.00016438,2]
[418925239,1774567845864,-1037.0,0.00016438,2]
[418925240,1774567845874,-1037.0,0.00016438,2]
[418925241,1774567845884,-1037.0,0.00016438,2]
[418925242,1774567845893,-1037.0,0.00016438,2]
[418925243,1774567845902,-1037.0,0.00016438,2]
[418925244,1774567845911,-150.0,0.00016438,2]
[418925245,1774567845920,-150.0,0.00016438,2]
[418925246,1774567845930,-1037.0,0.00016438,2]
[418925247,1774567845939,-1037.0,0.00016438,2]
[418925248,1774567845947,-1037.0,0.00016438,2]
[418925249,1774567845956,-1037.0,0.00016438,2]
[418925250,1774567845965,-150.0,0.00016438,2]
[418925251,1774567845975,-1037.0,0.00016438,2]
[418925252,1774567845984,-1037.0,0.00016438,2]
[418925253,1774567845993,-1037.0,0.00016438,2]
[418925254,1774567846002,-1037.0,0.00016438,2]
[418925255,1774567846011,-150.0,0.00016438,2]
[418925256,1774567846020,-1037.0,0.00016438,2]
[418925257,1774567846029,-1037.0,0.00016438,2]
[418925258,1774567846038,-150.0,0.00016438,2]
[418925259,1774567846047,-1037.0,0.00016438,2]
[418925260,1774567846056,-150.0,0.00016438,2]
[418925261,1774567846066,-1037.0,0.00016438,2]
[418925262,1774567846075,-150.0,0.00016438,2]
[418925263,1774567846084,-1037.0,0.00016438,2]
[418925264,1774567846093,-1042.33082446,0.00016438,2]
[418925265,1774567846103,-150.0,0.00016438,2]
[418925266,1774567846111,-150.0,0.00016438,2]
[418925267,1774567846121,-150.0,0.00016438,2]
[418925268,1774567846130,-150.0,0.00016438,2]
[418925269,1774567846140,-150.0,0.00016438,2]
[418925270,1774567846149,-150.0,0.00016438,2]
[418925271,1774567846158,-150.0,0.00016438,2]
[418925272,1774567846167,-150.0,0.00016438,2]
[418925273,1774567846176,-150.0,0.00016438,2]
[418925274,1774567846187,-150.0,0.00016438,2]
[418925275,1774567846196,-150.0,0.00016438,2]
[418925276,1774567846206,-150.0,0.00016438,2]
[418925277,1774567846215,-150.0,0.00016438,2]
[418925278,1774567846225,-150.0,0.00016438,2]
[418925279,1774567846234,-150.0,0.00016438,2]
[418925280,1774567846244,-290.54319731,0.00016438,2]
[418925281,1774567846253,-2500.0,0.00016438,2]
[418925282,1774567846262,-2500.0,0.00016438,2]
[418925283,1774567846273,-2517.65290111,0.00016438,2]
[418925284,1774567846283,-151.0,0.00016438,2]
[418925285,1774567846294,-151.0,0.00016438,2]
[418925286,1774567846304,-157.087834,0.00016438,2]
[418925287,1774567846316,-151.0,0.00016438,2]
[418925288,1774567846334,-151.0,0.00016438,2]
[418925289,1774567846345,-151.0,0.00016438,2]
[418925290,1774567846355,-152.841899,0.00016438,2]
[418925291,1774567846367,-300.0,0.00016438,2]
[418925292,1774567846394,-300.0,0.00016438,2]
[418925293,1774567846406,-300.0,0.00016438,2]
[418925294,1774567846418,-300.0,0.00016438,2]
[418925295,1774567846431,-300.0,0.00016438,2]
[418925296,1774567846442,-300.0,0.00016438,2]
[418925297,1774567846452,-300.0,0.00016438,2]
[418925298,1774567846463,-300.0,0.00016438,2]
[418925299,1774567846473,-300.0,0.00016438,2]
[418925300,1774567846493,-300.0,0.00016438,2]
[418925301,1774567846505,-300.0,0.00016438,2]
[418925302,1774567846517,-300.0,0.00016438,2]
[418925303,1774567846527,-300.0,0.00016438,2]
[418925304,1774567846538,-300.0,0.00016438,2]
[418925305,1774567846548,-300.0,0.00016438,2]
[418925306,1774567846559,-300.0,0.00016438,2]
[418925307,1774567846570,-300.0,0.00016438,2]
[418925308,1774567846580,-300.0,0.00016438,2]
[418925309,1774567846590,-300.0,0.00016438,2]
[418925310,1774567846604,-300.0,0.00016438,2]
[418925311,1774567846616,-300.0,0.00016438,2]
[418925312,1774567846626,-300.0,0.00016438,2]
[418925313,1774567846639,-300.0,0.00016438,2]
[418925314,1774567846652,-300.0,0.00016438,2]
[418925315,1774567846663,-300.0,0.00016438,2]
[418925316,1774567846674,-300.0,0.00016438,2]
[418925317,1774567846686,-300.0,0.00016438,2]
[418925318,1774567846697,-300.0,0.00016438,2]
[418925321,1774567846708,-300.0,0.00016438,2]
[418925322,1774567846719,-300.0,0.00016438,2]
[418925324,1774567846729,-300.0,0.00016438,2]
[418925325,1774567846739,-300.0,0.00016438,2]
[418925326,1774567846749,-300.0,0.00016438,2]
[418925327,1774567846760,-300.0,0.00016438,2]
[418925328,1774567846770,-300.0,0.00016438,2]
[418925329,1774567846781,-300.0,0.00016438,2]
[418925330,1774567846791,-300.0,0.00016438,2]
[418925331,1774567846801,-300.0,0.00016438,2]
[418925332,1774567846819,-300.0,0.00016438,2]
[418925333,1774567846830,-300.0,0.00016438,2]
[418925334,1774567846840,-300.0,0.00016438,2]
[418925335,1774567846850,-300.0,0.00016438,2]
[418925336,1774567846861,-300.0,0.00016438,2]
[418925337,1774567846871,-300.0,0.00016438,2]
[418925338,1774567846881,-300.0,0.00016438,2]
[418925339,1774567846896,-300.0,0.00016438,2]
[418925340,1774567846911,-300.0,0.00016438,2]
[418925341,1774567846922,-300.0,0.00016438,2]
[418925342,1774567846933,-300.0,0.00016438,2]
[418925343,1774567847145,-300.0,0.00016438,2]
[418925344,1774567847156,-300.0,0.00016438,2]
[418925345,1774567847167,-300.0,0.00016438,2]
[418925346,1774567847179,-300.0,0.00016438,2]
[418925347,1774567847190,-300.0,0.00016438,2]
[418925348,1774567847200,-300.0,0.00016438,2]
[418925349,1774567847211,-300.0,0.00016438,2]
[418925350,1774567847226,-152.86455147,0.00016438,2]
[418925351,1774567847237,-152.0,0.00016438,2]
[418925352,1774567847248,-326.80051736,0.00016438,2]
[418925353,1774567847259,-151.0,0.00016438,2]
[418925354,1774567847270,-151.0,0.00016438,2]
[418925355,1774567847281,-151.0,0.00016438,2]
[418925356,1774567847292,-151.0,0.00016438,2]
[418925357,1774567847302,-151.0,0.00016438,2]
[418925358,1774567847313,-151.0,0.00016438,2]
[418925359,1774567847323,-151.0,0.00016438,2]
[418925360,1774567847334,-151.0,0.00016438,2]
[418925361,1774567847343,-151.0,0.00016438,2]
[418925362,1774567847354,-151.0,0.00016438,2]
[418925363,1774567847364,-284.871825,0.00016438,2]
[418925364,1774567847374,-152.0,0.00016438,2]
[418925365,1774567847386,-152.0,0.00016438,2]
[418925366,1774567847396,-292.0,0.00016438,2]
[418925367,1774567847407,-152.0,0.00016438,2]
[418925368,1774567847418,-152.0,0.00016438,2]
[418925369,1774567847428,-152.0,0.00016438,2]
[418925370,1774567847439,-152.0,0.00016438,2]
[418925371,1774567847450,-152.0,0.00016438,2]
[418925372,1774567847461,-152.0,0.00016438,2]
[418925373,1774567847471,-152.0,0.00016438,2]
[418925374,1774567847481,-152.0,0.00016438,2]
[418925375,1774567847490,-152.0,0.00016438,2]
[418925376,1774567847500,-222.06434094,0.00016438,2]
[418925377,1774567847510,-152.0,0.00016438,2]
[418925378,1774567847520,-152.0,0.00016438,2]
[418925379,1774567847530,-152.0,0.00016438,2]
[418925380,1774567847540,-152.0,0.00016438,2]
[418925381,1774567847549,-5587.0,0.00016456,2]
[418925382,1774567847559,-10000.0,0.000165,2]
[418925383,1774567847568,-1000.0,0.00016521,2]
[418925384,1774567847577,-1000.0,0.00016521,2]
[418925385,1774567847587,-1000.0,0.00016521,2]
[418925386,1774567847596,-1000.0,0.00016521,2]
[418925387,1774567847606,-417.7,0.00016574,2]
[418925388,1774567847616,-1000.0,0.000166,2]
[418925389,1774567847626,-1000.0,0.000166,2]
[418925390,1774567847635,-8524.0,0.00016635,2]
[418925391,1774567847645,-155.0,0.00016664,3]
[418925392,1774567847654,-4000.0,0.0001667,2]
[418925393,1774567847664,-151.0,0.00016672,5]
[418925394,1774567847673,-1246.8,0.00016712,2]
[418925395,1774567847683,-166.0,0.00016712,2]
[418925396,1774567847692,-186.93,0.00016712,2]
[418925397,1774567847701,-7111.0,0.00016737,2]
[418925398,1774567847711,-200.0,0.00016783,2]
[418925399,1774567847720,-260.59,0.000168,2]
[418925400,1774567847730,-259.1136,0.000168,2]
[418925401,1774567847739,-13561.239,0.000168,2]
[418925402,1774567847748,-700.0,0.00016822,7]
[418925403,1774567847758,-150.0,0.0001683,7]
[418925404,1774567847767,-2000.0,0.00016894,3]
[418925405,1774567847777,-8960.0,0.00016896,2]
[418925406,1774567847787,-163.0,0.000169,20]
[418925407,1774567847798,-2000.0,0.000169,2]
[418925408,1774567847807,-700.0,0.00016964,5]
[418925409,1774567847816,-736.0,0.00016969,2]
[418925410,1774567847826,-300.0,0.0001697,2]
[418925411,1774567847835,-250.0,0.0001697,2]
[418925412,1774567847844,-1246.8,0.00016986,2]
[418925413,1774567847855,-200.0,0.0001699,2]
[418925414,1774567847864,-8456.0,0.00016999,2]
[418925415,1774567847875,-519565.93656886,0.00017,2]
[418925416,1774567847886,-2602.18551521,0.00017,2]
[418925417,1774567847895,-1783.0,0.00017,7]
[418925418,1774567847904,-1000.0,0.00017,2]
[418925419,1774567847914,-418.28605394,0.00017,30]
[418925420,1774567847923,-418.28605394,0.00017,30]
[418925421,1774567847932,-298.77575281,0.00017,30]
[418925422,1774567847944,-1000.0,0.00017,2]
[418925423,1774567847953,-514.0,0.00017,5]
[418925424,1774567847963,-350.0,0.00017,2]
[418925425,1774567847972,-200.0,0.0001701,2]
[418925426,1774567847981,-200.0,0.0001701,120]
[418925427,1774567847990,-504.0,0.00017046,4]
[418925428,1774567848002,-4000.0,0.00017058,2]
[418925429,1774567848012,-1500.0,0.00017068,2]
[418925430,1774567848021,-1500.0,0.00017068,2]
[418925431,1774567848031,-1500.0,0.00017068,2]
[418925432,1774567848041,-803.37889883,0.00017068,2]
[418925433,1774567848050,-150.0,0.00017086,2]
[418925434,1774567848060,-150.0,0.00017086,2]